bitfinex/quotes_ETHUSD_20250214
["timestamp","ask_amount","ask_price","bid_price","bid_amount"]
[1739555270731,4.42308516,2763.0,2762.5,0.52724683]
[1739555271340,4.16977,2762.6,2762.5,0.52724683]
[1739555271508,4.23002998,2762.6,2762.5,0.52724683]
[1739555271708,0.55,2762.4,2761.5,2.0]
[1739555271944,0.0075,2762.3,2761.6,3.621]
[1739555272244,0.99454058,2762.3,2761.5,2.0]
[1739555272413,0.5575,2762.3,2761.5,2.0]
[1739555272606,0.565,2762.4,2761.6,3.621]
[1739555272830,0.565,2762.4,2761.7,3.62088]
[1739555273025,0.55,2762.4,2761.5,2.0]
[1739555273229,0.75509,2762.4,2761.7,3.6209]
[1739555273547,0.75509,2762.4,2761.6,3.62097]
[1739555275655,5.12084,2762.5,2761.6,2.0]
[1739555275939,0.512084,2762.4,2761.7,3.0]
[1739555276149,0.512084,2762.4,2761.6,5.62102]
[1739555276345,5.12085,2762.5,2761.6,5.62102]
[1739555276547,0.55,2762.4,2761.7,6.62086]
[1739555276902,0.55,2762.4,2761.8,3.62079]
[1739555277100,0.55,2762.4,2761.7,6.57088]
[1739555277339,0.55,2762.4,2761.8,3.62082]
[1739555277540,1.5009,2762.5,2762.0,3.62046]
[1739555277852,0.55,2762.4,2761.5,5.62112]
[1739555278053,0.567089,2762.3,2761.5,5.62112]
[1739555278254,0.567089,2762.3,2761.5,2.0]
[1739555278255,4.187349,2762.3,2761.5,2.0]
[1739555278576,0.567089,2762.3,2761.6,3.62108]
[1739555278782,1.5009,2762.5,2761.7,3.62093]
[1739555278968,1.5009,2762.5,2761.8,3.62073]
[1739555279163,1.5009,2762.5,2761.9,3.62068]
[1739555279364,1.5009,2762.5,2761.7,3.62083]
[1739555280098,0.5575,2762.4,2761.6,3.0]
[1739555280251,0.20584,2762.3,2761.6,3.0]
[1739555280450,0.20584,2762.3,2761.5,2.0]
[1739555280641,1.5009,2762.2,2761.5,2.0]
[1739555280844,0.5575,2762.1,2761.2,2.0]
[1739555281041,1.5009,2762.0,2761.2,2.0]
[1739555281355,0.20584,2761.9,2761.1,0.301]
[1739555281571,0.55,2761.8,2761.1,0.301]
[1739555281990,1.5009,2761.7,2761.1,0.301]
[1739555282134,4.22393354,2761.6,2761.1,0.301]
[1739555282335,0.5575,2761.4,2760.3,5.62273]
[1739555282688,0.5575,2761.4,2760.4,3.62264]
[1739555282689,1.5009,2761.1,2760.4,3.62264]
[1739555282849,1.5009,2761.1,2760.5,7.24496]
[1739555283036,1.5009,2761.1,2760.5,7.2449]
[1739555283237,1.5009,2761.1,2760.7,3.62217]
[1739555283492,1.5009,2761.1,2760.3,3.92372]
[1739555283795,0.55,2761.0,2760.2,2.0]
[1739555283978,1.5009,2761.1,2760.7,3.62223]
[1739555284142,0.0452848,2761.5,2761.2,3.62161]
[1739555284143,1.5009,2761.5,2761.2,3.62161]
[1739555284337,1.5009,2761.8,2761.3,3.6214]
[1739555284569,1.5009,2761.8,2761.3,2.0]
[1739555284927,0.7419552,2761.7,2761.0,0.302]
[1739555285207,0.98682472,2761.7,2761.2,3.6216]
[1739555285574,1.5009,2761.8,2761.0,0.302]
[1739555285777,1.5009,2761.8,2761.4,3.62125]
[1739555285981,1.5009,2761.8,2761.2,9.24306]
[1739555288577,0.85311027,2762.1,2761.4,3.62122]
[1739555289013,0.85311027,2762.1,2761.6,3.62107]
[1739555289177,0.30311027,2762.1,2761.7,3.62091]
[1739555289380,1.5234,2762.2,2762.1,3.62043]
[1739555289597,1.5234,2762.5,2761.9,3.62061]
[1739555290064,1.5234,2762.5,2761.8,3.0]
[1739555290695,1.5234,2762.5,2761.7,5.62086]
[1739555290696,1.26697657,2762.4,2761.5,3.62115]
[1739555290897,1.80243766,2762.3,2761.7,3.62093]
[1739555291103,1.5234,2762.3,2762.0,3.62045]
[1739555291418,1.5234,2762.3,2761.8,6.6207]
[1739555291718,1.5234,2762.3,2762.0,3.62055]
[1739555291916,1.5234,2762.3,2761.7,2.0]
[1739555292120,1.5234,2762.3,2761.9,7.24118]
[1739555292420,1.5234,2762.3,2762.1,3.62042]
[1739555292571,1.5234,2762.3,2762.0,3.62051]
[1739555293002,1.5234,2762.3,2761.8,3.0]
[1739555293200,1.5234,2762.3,2761.8,6.62074]
[1739555293723,0.39246664,2762.3,2761.8,6.62074]
[1739555293919,0.39246664,2762.3,2761.8,3.0]
[1739555294370,0.39246664,2762.3,2761.8,6.62074]
[1739555294571,0.39246664,2762.3,2761.8,3.62082]
[1739555294870,0.39246664,2762.3,2761.9,7.24125]
[1739555295215,0.39246664,2762.3,2761.9,3.62062]
[1739555297110,1.5234,2762.8,2762.1,2.0]
[1739555297335,1.5234,2762.8,2762.4,3.61995]
[1739555297480,1.99574,2762.8,2762.4,3.61995]
[1739555297680,1.99574,2762.8,2762.1,5.62041]
[1739555297902,1.99574,2762.8,2762.2,7.24049]
[1739555298127,1.99574,2762.8,2762.1,2.0]
[1739555298427,3.7,2763.0,2762.6,6.61976]
[1739555298630,3.7,2763.0,2762.9,3.61938]
[1739555299235,3.7,2763.0,2762.8,3.91851]
[1739555299541,3.7,2763.0,2762.9,11.61938]
[1739555300248,1.3e-06,2763.4,2763.3,5.61886]
[1739555300552,1.3e-06,2764.0,2763.9,7.26197]
[1739555300706,1.3e-06,2764.0,2763.9,15.26197]
[1739555301038,1.3e-06,2764.0,2763.9,15.56297]
[1739555301244,1.3e-06,2764.0,2763.9,15.26197]
[1739555301442,1.3e-06,2764.0,2763.9,13.56484]
[1739555301845,1.3e-06,2764.0,2763.9,15.17964]
[1739555302012,1.3e-06,2764.0,2763.9,15.27964]
[1739555302193,1.3e-06,2764.0,2763.9,28.63106227]
[1739555302630,1.3e-06,2764.0,2763.9,14.87864]
[1739555302814,1.3e-06,2764.0,2763.9,15.17964]
[1739555303507,1.3e-06,2764.0,2763.9,14.87864]
[1739555303748,1.3e-06,2764.0,2763.9,11.87864]
[1739555303952,1.3e-06,2764.0,2763.9,2.302]
[1739555304188,1.3e-06,2764.0,2763.9,0.302]
[1739555304328,1.3e-06,2764.0,2763.6,2.0]
[1739555305077,1.3e-06,2764.0,2763.3,2.0]
[1739555305285,0.55,2763.8,2763.1,3.0]
[1739555305583,0.55,2763.8,2763.3,3.61885]
[1739555305737,0.55,2763.8,2763.2,3.61894]
[1739555305936,1.5797,2763.9,2763.3,3.61885]
[1739555306235,1.3e-06,2764.0,2763.8,5.61809]
[1739555306437,1.3e-06,2764.0,2763.9,0.0071]
[1739555307483,1.3e-06,2764.0,2763.9,7.42759227]
[1739555307633,1.3e-06,2764.0,2763.9,3.3101]
[1739555308163,0.0125,2764.7,2763.9,0.3101]
[1739555308368,0.23329461,2764.6,2763.9,0.3101]
[1739555308550,0.005,2764.7,2763.9,0.3101]
[1739555308751,0.005,2764.7,2764.6,2.0]
[1739555308971,0.005,2764.7,2764.6,11.83099]
[1739555309168,0.005,2764.7,2764.6,13.44579]
[1739555309336,0.005,2764.7,2764.6,13.94521227]
[1739555309785,0.005,2764.7,2764.6,14.24921227]
[1739555309946,0.005,2764.7,2764.6,13.94521227]
[1739555310152,0.005,2764.7,2764.6,12.13499]
[1739555310377,0.005,2764.7,2764.6,11.83099]
[1739555311355,0.005,2764.7,2764.6,12.33041227]
[1739555311758,1.7292013,2766.1,2765.5,2.0]
[1739555312076,0.1495013,2766.1,2766.0,3.61532]
[1739555312256,0.1495013,2766.1,2766.0,11.61532]
[1739555312441,0.1495013,2766.1,2766.0,10.13812]
[1739555313287,0.1495013,2766.1,2766.0,10.63754227]
[1739555313646,0.1495013,2766.1,2766.0,10.44412]
[1739555314079,0.1495013,2766.1,2766.0,10.94354227]
[1739555314281,0.1495013,2766.1,2766.0,2.85885]
[1739555314444,0.1495013,2766.1,2766.0,2.15194]
[1739555314638,0.1495013,2766.1,2765.8,2.0]
[1739555315205,0.04358758,2766.0,2765.8,2.0]
[1739555315542,0.1495013,2766.1,2765.9,13.23025]
[1739555315742,0.1495013,2766.1,2766.0,11.61532]
[1739555315944,1.3e-06,2766.1,2766.0,47.11775576]
[1739555316178,1.3e-06,2766.1,2766.0,46.61532]
[1739555316379,1.3e-06,2766.1,2766.0,47.11474227]
[1739555316583,1.3e-06,2766.1,2766.0,49.23197803]
[1739555316884,1.3e-06,2766.1,2766.0,49.74171357]
[1739555317055,1.5797,2767.8,2767.2,2.0]
[1739555317378,0.005,2768.4,2767.5,2.0]
[1739555317379,0.0420954,2767.7,2767.5,2.0]
[1739555317580,0.005,2768.4,2767.0,1.6216]
[1739555317581,1.5662,2767.6,2767.0,0.50243576]
[1739555317876,1.55836025,2767.6,2766.9,3.92508]
[1739555318056,0.04065453,2767.5,2766.9,3.92508]
[1739555318244,0.04065453,2767.5,2767.4,35.0]
[1739555318650,0.17842941,2768.7,2767.4,38.6135]
[1739555318856,0.41442584,2768.1,2767.4,3.6135]
[1739555319194,0.04151148,2768.0,2767.3,2.0]
[1739555319394,0.72629736,2768.2,2767.3,2.0]
[1739555319596,0.72629736,2768.2,2767.4,3.61344]
[1739555319914,0.005,2768.4,2767.3,2.0]
[1739555319915,0.04158497,2768.1,2767.5,3.61335]
[1739555320198,0.015,2768.1,2767.2,2.0]
[1739555320393,0.71740481,2768.3,2768.0,35.0]
[1739555320596,0.005,2768.4,2768.1,2.0]
[1739555320898,0.005,2768.4,2768.3,3.61232]
[1739555321191,0.005,2768.4,2768.3,37.0]
[1739555321393,0.005,2768.4,2768.3,44.39169]
[1739555322296,3.66e-06,2768.8,2768.7,8.6118]
[1739555322533,3.66e-06,2768.8,2768.7,13.9278]
[1739555322833,3.66e-06,2768.8,2768.7,15.95913554]
[1739555323035,3.66e-06,2768.8,2768.7,51.05913554]
[1739555323215,0.02,2769.8,2768.7,51.05913554]
[1739555323216,0.02,2769.8,2769.7,10.23209]
[1739555323420,0.02,2769.8,2769.7,12.95882554]
[1739555323618,0.02,2769.8,2769.7,2.0]
[1739555323826,5.1966,2769.8,2769.0,2.0]
[1739555324006,4.13017,2769.7,2769.0,2.0]
[1739555324195,3.61101,2769.4,2768.7,2.0]
[1739555324398,3.6115,2769.0,2768.5,0.52192227]
[1739555324595,3.6115,2769.0,2767.9,4.02256554]
[1739555324596,3.61207,2768.5,2767.7,2.52192227]
[1739555324804,3.61267,2768.1,2767.8,35.0]
[1739555325029,5.17856,2768.3,2767.8,35.0]
[1739555325228,3.61268,2768.1,2767.8,35.0]
[1739555325441,1.5662,2768.3,2767.8,37.0]
[1739555325632,1.5662,2768.8,2767.8,2.0]
[1739555325834,1.98372547,2768.8,2768.1,2.0]
[1739555326136,3.61204,2768.6,2767.7,2.0]
[1739555326309,3.6121,2768.5,2767.4,5.61339]
[1739555326505,0.04515907,2768.7,2768.4,35.0]
[1739555326706,1.5662,2768.8,2768.4,37.0]
[1739555326918,1.5662,2769.5,2768.7,2.0]
[1739555327241,1.5662,2769.5,2768.4,5.0]
[1739555327408,5.17696,2769.5,2769.4,35.0]
[1739555327794,3.61136,2769.1,2768.3,2.32]
[1739555328198,0.04515406,2769.3,2768.0,2.0]
[1739555328422,3.61193,2768.6,2768.0,2.0]
[1739555328763,1.5662,2768.7,2767.4,2.0]
[1739555328764,4.129883,2768.5,2767.4,2.0]
[1739555328909,1.5662,2768.7,2767.9,2.0]
[1739555329114,1.5662,2768.7,2768.2,2.0]
[1739555329297,1.5662,2768.7,2768.6,35.0]
[1739555329992,5.178,2768.7,2768.6,35.0]
[1739555330438,1.5662,2768.7,2768.6,35.0]
[1739555331150,1.5662,2769.3,2768.6,35.0]
[1739555331349,1.5662,2769.3,2768.4,2.0]
[1739555331497,0.517719,2769.2,2768.4,5.61215]
[1739555331701,0.517719,2769.2,2769.1,35.0]
[1739555332154,4.128869,2769.2,2769.1,35.0]
[1739555332440,4.128869,2769.2,2768.7,0.0089]
[1739555332441,1.5708,2769.1,2768.7,0.0089]
[1739555332655,3.61162,2768.9,2768.7,0.0089]
[1739555332798,3.62667,2768.8,2768.7,0.0089]
[1739555332998,5.79262721,2768.8,2768.7,0.0089]
[1739555333335,5.19747,2768.8,2768.7,35.0089]
[1739555333524,5.18247,2768.8,2768.7,35.0089]
[1739555333731,6.626879,2768.8,2768.7,35.0089]
[1739555334427,6.076879,2768.8,2768.7,35.0089]
[1739555334632,6.061879,2768.8,2768.7,35.0089]
[1739555335026,6.626879,2768.8,2768.7,35.0089]
[1739555335852,6.626879,2768.8,2767.1,2.0]
[1739555335853,3.61279,2768.0,2767.1,2.0]
[1739555336020,3.61279,2768.0,2767.1,5.61384]
[1739555336544,3.61258,2768.1,2767.1,2.0]
[1739555336699,3.61258,2768.1,2768.0,35.0]
[1739555336900,0.04517017,2768.2,2768.0,35.0]
[1739555336901,3.61245,2768.2,2768.0,35.0]
[1739555337115,3.61245,2768.2,2767.3,3.6136]
[1739555337116,0.361245,2768.1,2767.3,5.6136]
[1739555337312,3.61253,2768.2,2767.3,5.6136]
[1739555337621,3.61253,2768.2,2768.1,35.0]
[1739555338019,3.62753,2768.2,2768.1,35.0]
[1739555338415,5.19833,2768.2,2768.1,35.0]
[1739555338746,6.074315,2768.2,2768.1,35.0]
[1739555339250,6.089315,2768.2,2768.1,35.0]
[1739555339553,10.78357336,2768.2,2768.1,35.0]
[1739555340100,1.5708,2767.3,2766.5,2.0]
[1739555340304,5.18451,2767.3,2766.5,2.0]
[1739555340554,5.24808,2767.7,2766.5,2.0]
[1739555340854,4.6357699,2768.7,2767.9,2.0]
[1739555340855,1.0238499,2768.7,2767.9,2.0]
[1739555341007,0.04515776,2768.6,2767.6,2.0]
[1739555341203,1.0238499,2768.7,2767.5,3.0]
[1739555341204,0.04516221,2768.7,2768.5,35.0]
[1739555341414,1.6349,2768.8,2768.5,35.0]
[1739555341757,3.61063,2769.6,2768.7,2.0]
[1739555341972,3.993684,2769.6,2768.7,2.0]
[1739555342129,0.004,2772.4,2772.2,4.34571]
[1739555342332,0.72672895,2773.2,2772.7,0.1]
[1739555342527,0.04509103,2774.2,2772.7,0.1]
[1739555342727,0.04509103,2774.2,2772.3,2.0]
[1739555342728,0.216,2774.4,2773.0,0.1]
[1739555342930,0.016,2774.4,2773.3,35.1]
[1739555343169,0.74009325,2774.0,2773.3,35.1]
[1739555343470,0.0079556,2773.5,2773.3,35.0]
[1739555343626,0.00208441,2773.5,2772.8,0.1]
[1739555343811,0.00208441,2773.5,2773.1,3.70606]
[1739555344014,0.00208441,2773.5,2773.4,38.70568]
[1739555344459,0.00208441,2773.5,2773.4,35.0]
[1739555344614,0.00208441,2773.5,2772.9,0.1]
[1739555344964,0.00208441,2773.5,2773.2,3.60588]
[1739555345213,4.41e-06,2773.5,2773.4,5.70568]
[1739555345362,4.41e-06,2773.5,2773.4,9.88597]
[1739555345563,4.41e-06,2773.5,2773.4,47.24398]
[1739555345764,1.6349,2774.5,2774.1,0.1]
[1739555346594,1.6349,2774.5,2774.4,35.0]
[1739555346803,1.6186,2775.1,2774.6,0.1]
[1739555347176,0.04505325,2775.4,2775.0,0.1]
[1739555347375,0.17579736,2775.5,2775.3,35.0]
[1739555347624,3.60257,2775.8,2775.3,34.09912183]
[1739555347906,1.24469055,2775.9,2775.0,0.1]
[1739555348092,0.7631546,2775.9,2774.8,0.1]
[1739555348301,0.015,2775.0,2774.4,0.1]
[1739555348461,3.60361,2775.0,2774.4,0.1]
[1739555348829,1.6186,2775.1,2774.8,0.1]
[1739555349034,0.565,2775.7,2774.8,0.1]
[1739555349330,1.34362548,2775.6,2774.5,35.0]
[1739555349536,1.6186,2775.4,2774.3,0.1]
[1739555349747,0.71544141,2775.6,2774.8,0.1]
[1739555349923,0.1596043,2776.3,2776.0,0.1]
[1739555350152,0.1596043,2776.3,2776.2,0.1]
[1739555350432,0.1596043,2776.3,2776.1,3.60204]
[1739555350641,0.1596043,2776.3,2776.2,3.70204]
[1739555350932,0.1596043,2776.3,2776.2,35.1]
[1739555351438,0.1596043,2776.3,2776.2,45.70204]
[1739555351787,0.1596043,2776.3,2776.2,46.07504]
[1739555351995,0.1596043,2776.3,2776.2,35.0]
[1739555352287,0.1596043,2776.3,2776.2,0.1]
[1739555352506,0.1596043,2776.3,2776.2,12.26054]
[1739555352685,0.1596043,2776.3,2776.2,47.26054]
[1739555352916,0.1596043,2776.3,2776.2,35.1]
[1739555353288,0.1596043,2776.3,2776.2,44.32004]
[1739555353489,0.1596043,2776.3,2776.2,40.70204]
[1739555353709,0.1596043,2776.3,2776.2,45.70204]
[1739555354116,0.1596043,2776.3,2776.2,48.70204]
[1739555354499,0.1596043,2776.3,2776.2,45.70204]
[1739555354951,0.1596043,2776.3,2776.2,39.54546]
[1739555355098,0.1596043,2776.3,2776.2,39.15478]
[1739555355531,0.1596043,2776.3,2776.2,42.75682]
[1739555356198,0.1596043,2776.3,2776.2,39.15478]
[1739555356638,0.1596043,2776.3,2776.2,37.1]
[1739555357019,0.1596043,2776.3,2776.2,35.1]
[1739555357628,0.1596043,2776.3,2776.2,37.1]
[1739555357953,0.1596043,2776.3,2776.2,40.718]
[1739555358122,0.1596043,2776.3,2776.2,35.1]
[1739555359005,0.1596043,2776.3,2776.2,35.0]
[1739555359242,0.015,2776.0,2774.8,0.1]
[1739555359451,0.53799843,2776.2,2775.6,0.1]
[1739555359753,4.14008843,2776.2,2775.7,35.0]
[1739555359951,0.27196853,2776.2,2775.7,35.1]
[1739555360271,0.27196853,2776.2,2775.7,0.1]
[1739555360272,3.60231,2776.0,2775.7,0.1]
[1739555360564,0.27196853,2776.2,2776.1,0.1]
[1739555361122,0.27196853,2776.2,2776.1,35.0]
[1739555361320,3.87400853,2776.2,2776.1,35.0]
[1739555361835,3.60295,2775.6,2775.4,0.1]
[1739555362165,3.60295,2775.5,2775.4,0.1]
[1739555362373,0.72059,2775.5,2775.1,0.1]
[1739555362675,3.60374,2774.9,2774.7,0.1]
[1739555362834,3.60374,2774.9,2774.8,35.0]
[1739555363226,5.79194,2774.9,2774.8,35.0]
[1739555363424,3.60451,2774.3,2774.2,0.1]
[1739555363625,4.07099234,2774.3,2774.2,0.1]
[1739555363849,0.46648234,2774.3,2773.8,0.1]
[1739555364056,3.60459,2774.3,2774.0,0.1]
[1739555364266,3.60552,2773.6,2773.4,0.1]
[1739555364578,5.22784,2774.2,2773.8,0.1]
[1739555364775,3.60451,2774.3,2774.1,0.1]
[1739555364982,5.22725,2774.7,2774.1,35.1]
[1739555365274,3.60359,2775.1,2774.9,0.1]
[1739555365575,1.6232,2775.2,2774.7,0.1]
[1739555365576,3.6036,2775.0,2774.7,0.1]
[1739555365778,3.60438,2774.4,2774.2,0.1]
[1739555366072,3.964938,2774.4,2774.3,0.1]
[1739555366228,3.964938,2774.4,2774.3,35.1]
[1739555367078,5.588138,2774.4,2774.3,35.0]
[1739555367230,5.2277,2774.4,2774.3,35.0]
[1739555367637,5.2352,2774.4,2774.3,35.0]
[1739555367836,5.2352,2774.4,2773.6,0.1]
[1739555367837,3.60529,2773.8,2773.6,0.1]
[1739555368044,2.86756,2774.4,2773.6,0.1]
[1739555368245,3.60499,2774.0,2773.6,0.1]
[1739555368577,5.82271248,2774.4,2773.6,0.1]
[1739555368578,3.60529,2773.7,2773.6,0.1]
[1739555368728,3.60529,2773.7,2773.6,35.1]
[1739555368930,3.60529,2773.7,2773.6,0.1]
[1739555369234,3.60529,2773.7,2773.0,2.0]
[1739555369235,3.60581,2773.3,2773.2,0.1]
[1739555369661,4.32522872,2774.3,2773.2,0.1]
[1739555369868,0.50552362,2774.2,2773.8,0.1]
[1739555370128,3.60413,2774.6,2774.5,0.1]
[1739555370366,3.60412,2774.6,2774.2,0.1]
[1739555370678,3.60412,2774.6,2774.4,0.1]
[1739555370679,7.568822,2774.6,2774.4,0.1]
[1739555370878,3.964582,2774.6,2774.5,35.0]
[1739555371183,3.972082,2774.6,2774.5,35.0]
[1739555371973,3.964582,2774.6,2774.5,35.0]
[1739555372380,0.27196853,2776.2,2775.2,1.6424]
[1739555372593,1.7828043,2776.3,2776.2,0.1]
[1739555372884,0.1596043,2776.3,2776.2,0.1]
[1739555373026,0.1596043,2776.3,2776.2,35.1]
[1739555374142,3.7615143,2776.3,2776.2,35.0]
[1739555374345,3.7615143,2776.3,2775.4,0.1]
[1739555374346,0.565,2776.0,2775.4,0.1]
[1739555374549,0.61004366,2776.0,2775.4,0.1]
[1739555374751,3.60243,2776.0,2775.6,0.1]
[1739555374948,3.60244,2775.9,2775.6,0.1]
[1739555375148,0.360244,2775.8,2775.6,0.1]
[1739555375480,0.360244,2775.8,2775.7,35.0]
[1739555375677,4.13770573,2776.3,2776.0,0.1]
[1739555375975,4.13768573,2776.3,2775.7,35.1]
[1739555376183,0.0075,2776.0,2775.7,0.1]
[1739555376389,3.60231,2776.0,2775.7,0.1]
[1739555376537,4.322757,2776.0,2775.9,35.0]
[1739555377179,4.887757,2776.0,2775.9,35.0]
[1739555377333,0.565,2775.9,2775.3,0.1]
[1739555377529,0.0075,2775.9,2775.3,0.1]
[1739555377774,3.60266,2775.8,2775.5,0.1]
[1739555377983,0.20465098,2776.3,2776.0,0.1]
[1739555377984,0.1596043,2776.3,2776.0,0.1]
[1739555378181,0.04503583,2776.2,2775.9,0.1]
[1739555378473,3.60959,2776.2,2776.1,35.0]
[1739555378631,4.34669943,2776.2,2776.1,35.0]
[1739555379678,0.015,2776.1,2775.7,0.1]
[1739555379833,3.60256,2775.8,2775.7,0.1]
[1739555380679,3.60256,2775.8,2775.5,0.1]
[1739555380680,3.60282,2775.6,2775.5,0.1]
[1739555380874,3.6031,2775.4,2775.2,0.1]
[1739555381249,3.6031,2775.4,2775.3,35.0]
[1739555381980,3.61015,2775.8,2775.4,0.1]
[1739555382137,3.60283,2775.6,2775.4,0.1]
[1739555382332,0.04504414,2775.8,2775.3,0.1]
[1739555382547,0.565,2775.4,2774.2,0.1]
[1739555382748,3.61108,2775.1,2774.5,0.1]
[1739555382986,1.5545,2775.9,2775.3,0.1]
[1739555383190,3.60295,2775.5,2775.4,35.0]
[1739555383362,3.60295,2775.5,2774.5,0.1]
[1739555383363,3.60412,2774.6,2774.5,0.1]
[1739555383566,3.60451,2774.3,2774.2,0.049124]
[1739555383808,3.60529,2773.7,2773.6,0.049124]
[1739555383977,4.15471,2774.2,2773.5,0.049124]
[1739555384171,3.60532,2773.7,2773.5,0.049124]
[1739555384369,3.60532,2773.7,2773.6,35.0]
[1739555384570,0.0075,2773.8,2773.6,35.0]
[1739555384779,1.5545,2774.5,2774.0,0.049124]
[1739555384981,1.7820311,2774.5,2774.0,0.049124]
[1739555385189,3.60439,2774.4,2774.2,0.049124]
[1739555385408,4.14425836,2774.8,2774.4,0.049124]
[1739555385613,7.74813836,2774.8,2774.4,0.049124]
[1739555385820,3.60421,2774.6,2774.4,0.049124]
[1739555385980,3.60421,2774.6,2773.7,3.5226]
[1739555385981,4.53425384,2774.7,2774.6,0.049124]
[1739555386727,4.579314,2774.7,2774.6,0.049124]
[1739555387225,3.60412,2774.6,2774.5,0.049124]
[1739555387433,0.93026384,2774.7,2774.5,0.049124]
[1739555387596,0.93026384,2774.7,2774.5,35.049124]
[1739555387931,4.53426384,2774.7,2774.5,0.049124]
[1739555388433,3.60357,2775.1,2775.0,0.049124]
[1739555388982,3.60357,2775.1,2775.0,35.049124]
[1739555389726,4.16857,2775.1,2774.1,0.049124]
[1739555389930,7.209,2774.4,2774.1,0.049124]
[1739555390135,4.4816,2774.4,2774.3,0.049124]
[1739555390297,1.5545,2774.5,2774.3,0.049124]
[1739555390554,3.60422,2774.6,2774.5,0.049124]
[1739555390746,3.60422,2774.6,2774.5,35.049124]
[1739555390948,3.60388,2774.8,2774.5,35.049124]
[1739555391261,4.14425836,2775.6,2774.9,0.049124]
[1739555391592,3.60323,2775.3,2775.1,0.049124]
[1739555391796,3.60334,2775.2,2775.1,0.049124]
[1739555391978,3.60323,2775.3,2775.1,0.049124]
[1739555392177,0.7180119,2775.5,2775.4,0.049124]
[1739555392544,1.5516,2776.2,2775.7,0.049124]
[1739555392545,3.6023,2776.0,2775.7,0.049124]
[1739555392741,1.5516,2776.2,2775.9,35.0]
[1739555393089,8.31155836,2776.0,2775.9,35.0]
[1739555393296,3.60295,2775.6,2775.3,0.049124]
[1739555393794,3.60295,2775.6,2775.5,35.049124]
[1739555393997,4.32351,2775.6,2775.5,35.049124]
[1739555394164,4.33851,2775.6,2775.5,35.0]
[1739555394352,4.32351,2775.6,2775.5,35.049124]
[1739555395060,0.72056,2775.6,2775.5,35.049124]
[1739555395460,3.60272,2775.7,2775.5,35.049124]
[1739555395673,7.20551,2775.7,2775.5,35.049124]
[1739555395875,3.60272,2775.7,2775.5,35.049124]
[1739555396076,1.5516,2776.2,2776.0,0.049124]
[1739555396313,2.13714627,2776.2,2776.0,0.049124]
[1739555396448,3.60217,2776.1,2776.0,0.049124]
[1739555396800,3.60217,2776.1,2774.7,3.60396]
[1739555396801,3.60252,2775.9,2775.7,0.049124]
[1739555397005,4.16752,2775.9,2775.8,35.0]
[1739555397150,4.034272,2775.9,2775.8,35.0]
[1739555397349,0.416752,2775.9,2775.8,35.049124]
[1739555397601,5.73931627,2776.2,2775.8,35.049124]
[1739555397961,0.1596043,2776.3,2776.2,0.049124]
[1739555398319,0.1596043,2776.3,2776.2,35.049124]
[1739555398871,3.7615143,2776.3,2776.2,35.049124]
[1739555399103,3.7615143,2776.3,2776.2,35.0]
[1739555399311,7.1016987,2776.3,2776.2,35.0]
[1739555399474,1.3831887,2776.3,2776.2,35.049124]
[1739555399678,0.1596043,2776.3,2776.2,35.049124]
[1739555400583,0.1596043,2776.3,2776.2,38.651164]
[1739555400790,0.1596043,2776.3,2776.2,35.049124]
[1739555400970,0.1596043,2776.3,2776.2,44.561164]
[1739555401175,0.1596043,2776.3,2776.2,43.470534]
[1739555401406,0.1596043,2776.3,2776.2,44.344374]
[1739555401621,4.3e-06,2776.3,2776.2,47.842374]
[1739555401829,4.3e-06,2776.3,2776.2,48.042374]
[1739555402034,4.3e-06,2776.3,2776.2,47.842374]
[1739555402173,4.3e-06,2776.3,2776.2,48.215374]
[1739555402625,4.3e-06,2776.3,2776.2,47.842374]
[1739555402837,0.009056,2777.0,2776.9,3.650254]
[1739555402980,0.009056,2777.0,2776.9,10.211454]
[1739555403372,0.009056,2777.0,2776.9,43.211454]
[1739555403677,0.009056,2777.0,2776.9,48.316704]
[1739555404312,3.9e-07,2777.1,2777.0,6.601]
[1739555404493,3.9e-07,2777.1,2777.0,8.1622]
[1739555404878,3.9e-07,2777.1,2777.0,35.0]
[1739555405095,3.9e-07,2777.1,2777.0,35.049124]
[1739555405526,3.60135,2776.8,2776.6,0.049124]
[1739555405726,0.4051616,2776.7,2776.6,0.049124]
[1739555406043,0.360135,2776.7,2776.6,0.049124]
[1739555406221,2.2807423,2777.1,2776.8,0.049124]
[1739555406420,1.55160039,2777.1,2777.0,0.049124]
[1739555406747,1.55160039,2777.1,2776.5,3.60152]
[1739555406748,3.60135,2776.8,2776.6,0.049124]
[1739555407048,3.60204,2776.2,2775.9,0.049124]
[1739555407256,3.64731725,2776.1,2775.9,0.049124]
[1739555407547,3.6023,2776.0,2775.9,0.049124]
[1739555407712,4.50521236,2776.2,2775.5,0.049124]
[1739555407917,3.60285,2775.6,2775.4,0.049124]
[1739555408094,1.5602,2775.7,2775.6,0.049124]
[1739555408292,3.60243,2775.9,2775.6,0.049124]
[1739555408530,0.70668019,2776.0,2775.8,0.049124]
[1739555409009,1.5602,2776.1,2776.0,0.049124]
[1739555409223,1.5602,2776.1,2775.8,0.049124]
[1739555409425,1.5602,2776.1,2774.8,3.5292]
[1739555409426,3.60269,2775.7,2775.6,0.049124]
[1739555409644,0.0075,2775.7,2775.6,35.049124]
[1739555409847,0.0075,2775.7,2775.6,35.0]